[Event "Swedish Championship 2022"]
[Site "Uppsala"]
[Date "2022.07.09"]
[Round "8.3"]
[White "Blomqvist, Erik"]
[Black "Johansson, Linus"]
[Result "1-0"]
[ECO "C18"]
[WhiteElo "2521"]
[BlackElo "2468"]
[Annotator "TA"]
[PlyCount "123"]
[EventDate "2022.07.01"]
[EventType "tourn"]
[EventCountry "SWE"]
[SourceTitle "playchess.com"]
[Source "ChessBase"]
[SourceQuality "1"]
[TimeControl "40/5400+30:1800+30"]

{[%evp 16,123,0,0,0,0,9,0,0,5,7,-10,10,0,11,0,15,0,4,0,25,-7,-12,-27,-22,-25,-7,0,0,-18,0,0,31,16,27,20,32,11,0,0,0,0,0,0,0,0,0,0,128,129,88,95,150,150,191,179,195,183,325,300,289,240,214,178,543,543,527,503,539,444,436,450,549,541,531,542,527,515,582,462,600,600,587,573,556,548,647,637,571,452,687,662,752,757,1019,1091,1078,1056,956,882,900,0,892,799,833,832,806,744,744,704]} 1. e4 {[%emt 0:00:11]} e6 {[%emt 0:00:05]} 2. d4 {[%emt 0:00:05]} d5 {[%emt 0:00:03]} 3. Nc3 {[%emt 0:00:08]} Bb4 {[%emt 0:00:06]} 4. e5 {[%emt 0:00:07]} c5 {[%emt 0:00:04]} 5. a3 {[%emt 0:00:07]} Bxc3+ {[%emt 0:00:04]} 6. bxc3 {[%emt 0:00:07]} Ne7 {[%emt 0:00:04]} 7. Qg4 {[%emt 0:00:08]} Qc7 {[%emt 0:00:11]} 8. Bd3 {[%emt 0:00:17]} c4 {[%emt 0:00:09]} 9. Be2 {[%emt 0:00:13]} (9. Qxg7 $2 Rg8 10. Qxh7 cxd3 11. Qxd3 b6 $17) 9... Qa5 {[%emt 0:00:05] C18: French: 3 Nc3 Bb4: Main line: 7 h4 and 7 Qg4.} 10. Bd2 {[%emt 0:00:17]} ({Not} 10. Qxg7 $2 Qxc3+ 11. Bd2 (11. Kf1 $2 Rg8 $19) 11... Qxa1+ $19) 10... Nf5 {[%emt 0:00:05]} 11. h4 $1 {[%emt 0:00:32][%mdl 4] is currently scoring better than 11.Nf3.} Bd7 {[%emt 0:13:38] The position is equal.} 12. h5 {[%emt 0:02:41]} h6 {[%emt 0:01:05]} 13. a4 {[%emt 0:00:48]} Nc6 {[%emt 0:01:11]} 14. Nf3 {[%emt 0:01:27] [#]} Rg8 $146 {[%emt 0:06:47]} ({Predecessor:} 14... O-O-O 15. O-O g5 16. Qh3 f6 17. exf6 Rhf8 18. Rfd1 Rxf6 19. Nh2 e5 20. Ng4 Re6 21. dxe5 Nxe5 22. Nxe5 Rxe5 {½-½ (45) Sturt,R (2462)-Hari,M (2253) Arandjelovac 2021}) 15. Nh4 {[%emt 0:02:26]} Nfe7 {[%emt 0:00:15]} 16. Qh3 {[%emt 0:06:19]} O-O-O {[%emt 0:01:33][%cal Be8c8,Bc8b8,Bb8a8][%mdl 32]} 17. Bg4 {[%emt 0:03:44]} Kb8 {[%emt 0:00:31]} 18. f4 {[%emt 0:02:52]} Rde8 {[%emt 0:17:44]} 19. Qe3 {[%emt 0:18:16]} (19. Ke2 {is interesting.} g6 20. Rhb1 Nf5 21. hxg6 fxg6 22. Nxf5 gxf5 23. Bf3) 19... g6 {[%emt 0:01:37]} 20. Qf2 {[%emt 0:06:08]} Ka8 {[%emt 0:01:25]} 21. Nf3 {[%emt 0:04:10][%cal Bh4f3,Bf3h2,Bh2g4,Bg4f6][%mdl 32]} Rh8 {[%emt 0:10:55]} 22. Rh3 {[%emt 0:16:47]} Nd8 {[%emt 0:00:16]} 23. Nh2 {[%emt 0:00:59]} Bxa4 {[%emt 0:01:51]} 24. Bd1 {[%emt 0:02:03]} b5 {[%emt 0:00:19]} 25. Ng4 {[%emt 0:01:07]} Qc7 {[%emt 0:03:03]} 26. Nf6 {[%emt 0:05:05] [#] Strongly threatening hxg6.} Ref8 {[%emt 0:00:59]} 27. g4 {[%emt 0:00:54]} Ng8 {[%emt 0:05:39]} 28. Nxg8 {[%emt 0:18:08]} Rfxg8 {[%emt 0:08:23]} 29. Bc1 {[%emt 0:00:05][%cal Bd2c1,Bc1a3,Ba3d6][%mdl 32]} Nc6 {[%emt 0:06:51]} 30. Ba3 {[%emt 0:00:13]} Qd8 {[%emt 0:00:34]} 31. Kd2 {[%emt 0:01:34]} f6 {[%emt 0:02:44]} (31... f5 $11) 32. hxg6 $16 {[%emt 0:02:39]} Rxg6 {[%emt 0:01:11]} 33. Bd6 {[%emt 0:01:15]} Qg8 {[%emt 0:04:11]} (33... Rhg8 $142) 34. Bf3 {[%emt 0:00:33] White is more active.} Rxg4 {[%emt 0:01:27]} 35. exf6 {[%emt 0:00:52]} Rg6 {[%emt 0:07:19]} 36. Be5 {[%emt 0:00:03]} Qf8 {[%emt 0:00:47]} (36... Rh7 {was necessary.}) 37. f5 $18 {[%emt 0:01:23]} ({And not} 37. f7 Nxe5 38. fxe5 Rh7 $14) 37... Rxf6 {[%emt 0:00:27]} 38. Bxf6 {[%emt 0:00:40]} Qxf6 {[%emt 0:00:07]} 39. Rh5 {[%emt 0:02:14] [#] fxe6 is the strong threat.} Ne7 $2 {[%emt 0:00:42]} (39... Rf8 {is tougher.} 40. Qe3 Kb8 41. Qf4+ (41. Qxh6 Qxh6+ 42. Rxh6 Rxf5 $16) 41... e5 42. Qxh6 Kc7) 40. Re1 {[%emt 0:00:40]} exf5 {[%emt 0:03:54]} 41. Qe3 {[%emt 0:03:46]} ({Weaker is} 41. Rxe7 Qxe7 42. Bxd5+ Kb8 $18) 41... Rh7 {[%emt 0:05:06]} 42. Qe6 {[%emt 0:00:35] Inhibits Qd6.} Qxe6 {[%emt 0:06:18]} 43. Rxe6 {[%emt 0:00:17]} Kb7 {[%emt 0:00:02]} 44. Rexh6 {[%emt 0:00:58]} Rxh6 {[%emt 0:00:06]} 45. Rxh6 {[%emt 0:00:03][%mdl 4096] Endgame Black must now prevent Rh7. KRB-KBN} Kc7 {[%emt 0:00:30]} 46. Ra6 {[%emt 0:00:20]} Kd7 {[%emt 0:02:18]} 47. Rxa7+ {[%emt 0:00:16]} Ke6 {[%emt 0:00:28]} 48. Ra6+ {[%emt 0:00:21]} Kd7 {[%emt 0:00:07]} 49. Rf6 {[%emt 0:00:51]} Kc7 {[%emt 0:00:08]} 50. Kc1 {[%emt 0:02:04]} Kd7 {[%emt 0:05:01]} 51. Kb2 {[%emt 0:00:24]} Kc7 {[%emt 0:00:05]} 52. Bd1 {[%emt 0:00:21]} Kd7 {[%emt 0:02:37]} (52... b4 $142 53. cxb4 Be8) 53. Ka3 {[%emt 0:00:27]} Kc8 {[%emt 0:00:18]} 54. Kb4 {[%emt 0:00:25]} Kc7 {[%emt 0:00:05]} 55. Kc5 {[%emt 0:00:17]} Kd7 {[%emt 0:00:04]} 56. Ra6 {[%emt 0:01:07]} Kc7 {[%emt 0:02:03]} 57. Rh6 {[%emt 0:00:12]} Kd7 {[%emt 0:00:55]} 58. Ra6 {[%emt 0:02:04]} Kc7 $1 {[%emt 0:00:10]} 59. Rd6 {[%emt 0:00:22] White is clearly winning.} Kc8 {[%emt 0:00:41]} 60. Kb6 {[%emt 0:00:25]} Kb8 {[%emt 0:00:15]} 61. Rd8+ {[%emt 0:01:10]} Nc8+ {[%emt 0:00:05]} 62. Kc5 {[%emt 0:00:10] Weighted Error Value: White=0.17 (very precise) /Black=0.40} 1-0

[Event "Swedish Championship 2022"]
[Site "Uppsala"]
[Date "2022.07.10"]
[Round "9.2"]
[White "Carlsson, Ludvig"]
[Black "Blomqvist, Erik"]
[Result "1/2-1/2"]
[ECO "E11"]
[WhiteElo "2399"]
[BlackElo "2521"]
[Annotator "TA"]
[PlyCount "132"]
[EventDate "2022.07.01"]
[EventType "tourn"]
[EventCountry "SWE"]
[SourceTitle "playchess.com"]
[Source "ChessBase"]
[SourceQuality "1"]
[TimeControl "40/5400+30:1800+30"]

{[%evp 16,132,15,15,19,19,19,14,20,14,22,20,21,14,27,15,11,0,0,0,106,105,105,0,0,0,0,0,0,-18,0,0,0,0,24,-13,0,-52,-36,-68,-53,-69,-81,-80,-73,-163,-98,-179,-73,-134,-116,-129,0,-196,0,0,0,0,143,-44,-62,-246,0,0,0,0,0,0,0,0,0,0,0,0,0,0,0,0,0,0,0,0,0,0,0,0,0,0,0,0,0,0,0,0,0,0,0,0,0,0,0,0,0,0,0,0,0,0,0,0,0,0,0,0,0,0,0,0,0]} 1. d4 {[%emt 0:00:05]} Nf6 {[%emt 0:02:13]} 2. c4 {[%emt 0:00:34]} e6 {[%emt 0:00:06]} 3. Nf3 {[%emt 0:01:39]} Bb4+ {[%emt 0:02:07]} 4. Bd2 {[%emt 0:00:28]} Bxd2+ {[%emt 0:00:07]} 5. Qxd2 {[%emt 0:00:23]} d5 {[%emt 0:00:13]} 6. Nc3 {[%emt 0:02:56]} O-O {[%emt 0:00:29]} 7. e3 {[%emt 0:00:09]} Qe7 {[%emt 0:00:24]} 8. cxd5 {[%emt 0:01:15]} exd5 {[%emt 0:00:08]} 9. Bd3 {[%emt 0:00:08]} b6 {[%emt 0:01:05] E11: Bogo-Indian.} 10. O-O {[%emt 0:03:47]} Bb7 {[%emt 0:00:10]} 11. Ne5 {[%emt 0:03:37]} c5 {[%emt 0:01:00]} 12. f4 {[%emt 0:01:21]} Nc6 {[%emt 0:03:42]} 13. Rad1 {[%emt 0:06:29]} Rad8 {[%emt 0:02:55] [#]} 14. Bb1 $146 {[%emt 0:04:58]} ({Predecessor:} 14. Qf2 cxd4 15. exd4 Nb4 16. Bb1 Ne4 17. Qf3 f6 18. Ng4 Rfe8 19. Rfe1 Qf7 20. Qh3 {½-½ (34) Egorov,V (2327)-Sorcinelli,A (2161) LSS email 2014}) 14... Qe6 {[%emt 0:08:30]} 15. Qe1 {[%emt 0:04:59]} Ne7 {[%emt 0:09:12]} 16. f5 {[%emt 0:02:31]} Qd6 {[%emt 0:01:25]} 17. Qh4 {[%emt 0:05:38]} Rfe8 {[%emt 0:16:02]} (17... Nc6 $11 {keeps the balance.}) 18. Nb5 $16 {[%emt 0:08:37][%csl LRa7,LRd6]} Qb8 {[%emt 0:01:45]} 19. Rf3 {[%emt 0:00:17] 0x0.0022fcc3ddc2dp-1022s more active pieces.} (19. g4 $1 $16 {[%cal Rg4g5]}) 19... Nc6 $11 {[%emt 0:02:52]} 20. Ng4 {[%emt 0:04:08]} (20. Rg3 Nxe5 21. Qxf6 Nf3+ $1 {[%mdl 512]} 22. gxf3 (22. Kh1 $2 Qxg3 23. hxg3 gxf6 $19) 22... Qxg3+ $3 {[%mdl 512]} 23. hxg3 gxf6 $17) 20... Nxg4 {[%emt 0:01:56]} 21. Qxg4 {[%emt 0:00:25]} f6 $1 {[%emt 0:00:59]} (21... g6 $2 22. fxg6 fxg6 23. Bxg6 $1 $18 {[%mdl 512]}) 22. Rg3 {[%emt 0:03:20][%csl Gg3][%cal Rg4g7]} Rd7 {[%emt 0:07:21]} 23. Nc3 {[%emt 0:00:36][%cal Oc3d5] Strongly threatening Nxd5!} cxd4 {[%emt 0:20:18]} 24. exd4 {[%emt 0:04:58][%cal Oc3d5]} Na5 {[%emt 0:02:50]} 25. Bd3 {[%emt 0:01:42]} (25. b3 $5 {[%cal Rc3e2]}) 25... Nc4 {[%emt 0:01:09]} 26. Bxc4 {[%emt 0:00:20]} ({White should try} 26. Rc1 $11) 26... dxc4 $15 {[%emt 0:00:06]} 27. d5 {[%emt 0:00:06]} Qc7 $1 {[%emt 0:03:56]} 28. Qd4 {[%emt 0:04:14]} Re5 $1 {[%emt 0:00:35]} 29. Re3 {[%emt 0:01:32]} Rxf5 {[%emt 0:06:09]} 30. Re8+ {[%emt 0:05:37]} Kf7 {[%emt 0:00:02]} 31. Qe4 {[%emt 0:00:09]} (31. Qe3 $17) 31... Qf4 {[%emt 0:01:58]} (31... Re5 32. Rxe5 Qxe5 33. Qxc4 $11) (31... Qc5+ $1 $19 {and Black stays clearly on top.} 32. Qe3 (32. Kh1 $2 Bxd5 33. Nxd5 Qxd5 $19) 32... Qxe3+ 33. Rxe3 a6) 32. Qe6+ {[%emt 0:02:26]} Kg6 {[%emt 0:00:02]} 33. h3 {[%emt 0:00:02]} (33. Qxd7 $2 {leads to mate.} Qf2+ 34. Kh1 Qf1+ $3 {[%mdl 512]} 35. Rxf1 Rxf1#) 33... Rd6 {[%emt 0:01:59]} ({Better is} 33... Qf2+ $1 $17 34. Kh1 Rg5 $1) 34. Qg8 $2 {[%emt 0:03:21]} (34. Qe2 $11 {and White has nothing to worry.} Bxd5 35. Qg4+ Qxg4 36. hxg4) 34... Qf2+ $2 {[%emt 0:01:17]} (34... Re5 $1 $19 {Hoping for ...Qe3+.} 35. Rd8 (35. Rf8 $2 Bxd5 36. Nxd5 Rdxd5 $19) 35... Re3) 35. Kh1 $11 {[%emt 0:00:01] White wants to mate with Re7. Chess con chili.} Rg5 {[%emt 0:01:10][%csl Gg5][%cal Rf2g2]} 36. Re2 {[%emt 0:00:02]} Qf5 {[%emt 0:01:17] [#]} (36... Qf4 $1 $11 37. Re7 Kh6 38. Rxb7 Qg3) 37. Re7 $2 {[%emt 0:00:31]} (37. Qe8+ $1 $16 Kh6 38. Qe3) 37... Bxd5 $15 {[%emt 0:00:59] ( -> ...Qxh3+)} 38. Nxd5 $2 {[%emt 0:00:47] [#]} (38. Qxg7+ $15 Kh5 39. Qxh7+ Qxh7 40. Rxh7+ Kg6 41. Rxa7 Bxg2+ 42. Kh2) 38... Rxd5 $2 {[%emt 0:00:12]} (38... Kh6 $1 $19 {...b5 is the strong threat.} 39. a4 Rxd5 40. Qxd5 Qxd5 41. Rxd5 Rxd5 42. Rxa7 Rd2) 39. Qxg7+ $11 {[%emt 0:02:13] The position is equal.} Kh5 {[%emt 0:00:01]} 40. Qxh7+ {[%emt 0:10:26]} Qxh7 {[%emt 0:00:07]} 41. Rxh7+ {[%emt 0:30:06]} Kg6 {[%emt 0:30:03]} 42. Rxd5 {[%emt 0:00:08]} Rxd5 {[%emt 0:01:10]} 43. Rxa7 {[%emt 0:03:48][%mdl 4096] Endgame KR-KR} Rd2 {[%emt 0:00:00]} 44. Ra4 {[%emt 0:00:00]} Rxb2 {[%emt 0:00:00]} 45. Rxc4 {[%emt 0:00:00]} Rxa2 {[%emt 0:00:00]} 46. Rb4 {[%emt 0:00:00]} Ra6 {[%emt 0:00:00]} 47. Kh2 {[%emt 0:00:00]} Kg5 {[%emt 0:00:00]} 48. h4+ {[%emt 0:00:00]} Kh5 {[%emt 0:00:00]} 49. Kh3 {[%emt 0:00:00]} f5 {[%emt 0:00:00]} 50. Rb5 {[%emt 0:00:00]} Kg6 {[%emt 0:00:00]} 51. g3 {[%emt 0:00:00]} Kf6 $1 {[%emt 0:00:00]} 52. Rb1 {[%emt 0:00:00]} Kg6 {[%emt 0:00:00]} 53. Rb4 {[%emt 0:00:00]} Kf6 {[%emt 0:00:00]} 54. Rb3 {[%emt 0:00:00]} Kg6 {[%emt 0:00:00]} 55. Kg2 {[%emt 0:00:00]} Kf6 {[%emt 0:00:00]} 56. Kf3 {[%emt 0:00:00]} Ke5 {[%emt 0:00:00]} 57. Rb5+ {[%emt 0:00:00]} Kf6 {[%emt 0:00:00]} 58. Kg2 {[%emt 0:00:00]} Kg6 {[%emt 0:00:00]} 59. Kh2 {[%emt 0:00:00]} Kf6 {[%emt 0:00:00]} 60. Kh3 {[%emt 0:00:00]} Kg6 {[%emt 0:00:00]} 61. Rd5 {[%emt 0:00:00]} Ra3 {[%emt 0:00:00]} 62. Rd6+ {[%emt 0:00:00]} Kg7 {[%emt 0:00:00]} 63. Rxb6 {[%emt 0:00:00]} f4 $1 {[%emt 0:00:00]} 64. Rb4 {[%emt 0:00:00]} Rxg3+ {[%emt 0:00:00]} 65. Kh2 {[%emt 0:00:00]} Rg4 {[%emt 0:00:00]} 66. Kh3 {[%emt 0:00:00]} Rg3+ {[%emt 0:00:00] Weighted Error Value: White=0.30/Black=0.27 (precise)} 1/2-1/2

[Event "Swedish Championship 2022"]
[Site "Uppsala"]
[Date "2022.07.10"]
[Round "9.3"]
[White "Seo, Jung Min"]
[Black "Hillarp Persson, Tiger"]
[Result "1/2-1/2"]
[ECO "A55"]
[WhiteElo "2492"]
[BlackElo "2516"]
[Annotator "TA"]
[PlyCount "102"]
[EventDate "2022.07.01"]
[EventType "tourn"]
[EventCountry "SWE"]
[SourceTitle "playchess.com"]
[Source "ChessBase"]
[SourceQuality "1"]
[TimeControl "40/5400+30:1800+30"]

{[%evp 16,102,47,36,50,57,52,49,70,77,78,56,63,67,68,56,56,71,52,55,59,54,54,35,34,34,54,65,75,31,16,16,21,0,0,0,0,0,0,0,0,0,0,0,0,0,0,0,0,16,17,0,15,0,3,0,3,2,1,2,2,0,0,0,0,0,0,0,0,0,0,0,0,0,0,0,0,-7,-7,-12,-7,-12,-7,-14,-14,-33,-29,-19,0]} 1. d4 {[%emt 0:00:12]} Nf6 {[%emt 0:02:21]} 2. c4 {[%emt 0:00:15]} d6 {[%emt 0:01:38]} 3. Nf3 {[%emt 0:02:32]} Nbd7 {[%emt 0:00:22]} 4. Nc3 {[%emt 0:00:10]} e5 {[%emt 0:00:07]} 5. e4 {[%emt 0:00:03]} Be7 {[%emt 0:00:11]} 6. Be2 {[%emt 0:01:23]} O-O {[%emt 0:00:42]} 7. O-O {[%emt 0:00:38]} c6 {[%emt 0:00:10]} 8. Rb1 {[%emt 0:03:40]} Re8 {[%emt 0:18:28]} 9. b4 {[%emt 0:05:35]} exd4 {[%emt 0:08:15] A55: Old Indian Defence with Nf3 and e4.} 10. Nxd4 {[%emt 0:00:27]} Bf8 {[%emt 0:00:24]} 11. Qc2 {[%emt 0:03:53]} Ne5 {[%emt 0:05:20] White is slightly better.} 12. Rd1 {[%emt 0:03:10]} Qc7 {[%emt 0:00:27] [#]} 13. Bf4 $146 {[%emt 0:02:46]} ({Predecessor:} 13. h3 g6 14. Be3 Be6 15. f4 Ned7 16. g4 Nb6 17. Nxe6 Rxe6 18. f5 Ree8 19. Bf4 {1-0 (45) Pastar,S (2307)-Vukic,M (2386) Bosanska Krupa 2018}) 13... Bg4 {[%emt 0:05:47]} 14. f3 {[%emt 0:02:41]} Bd7 {[%emt 0:05:39][%cal Od6d5]} 15. Bg5 {[%emt 0:02:05]} Be7 {[%emt 0:20:19]} 16. Qd2 {[%emt 0:09:54]} Rad8 {[%emt 0:00:07]} 17. Bf1 {[%emt 0:01:01]} h6 {[%emt 0:02:57]} 18. Be3 {[%emt 0:02:06]} Bf8 {[%emt 0:00:44]} 19. Rbc1 {[%emt 0:02:56]} Qb8 {[%emt 0:00:13]} 20. b5 {[%emt 0:02:21]} c5 {[%emt 0:02:00]} 21. Nb3 {[%emt 0:01:02]} b6 {[%emt 0:02:02]} 22. a4 {[%emt 0:04:59]} Be6 $1 {[%emt 0:00:20]} 23. Nd5 {[%emt 0:00:29]} Nxd5 {[%emt 0:00:14]} 24. exd5 {[%emt 0:00:06]} Bf5 {[%emt 0:01:54]} 25. a5 {[%emt 0:02:48]} Be7 {[%emt 0:01:58]} 26. Re1 {[%emt 0:03:35]} Qc7 {[%emt 0:01:47]} 27. Bf2 {[%emt 0:01:03]} Ng6 {[%emt 0:04:49]} 28. f4 {[%emt 0:03:24]} Bf6 {[%emt 0:01:40]} 29. g3 {[%emt 0:01:05]} Qd7 {[%emt 0:01:14]} 30. Rxe8+ {[%emt 0:01:15]} Rxe8 {[%emt 0:00:06]} 31. Re1 {[%emt 0:00:28]} Nf8 {[%emt 0:00:39]} 32. Rxe8 {[%emt 0:01:24]} Qxe8 {[%emt 0:00:05]} 33. Bd3 {[%emt 0:02:54]} Bh3 {[%emt 0:01:35]} 34. Qe3 {[%emt 0:02:02]} Qd7 {[%emt 0:00:33]} 35. a6 {[%emt 0:00:48]} g6 {[%emt 0:02:52]} 36. Qe2 {[%emt 0:00:41]} Nh7 {[%emt 0:02:02]} 37. Nd2 {[%emt 0:00:30]} Bg7 {[%emt 0:00:49]} 38. Ne4 {[%emt 0:00:44]} Nf6 {[%emt 0:00:17]} 39. Nxf6+ {[%emt 0:00:05]} Bxf6 {[%emt 0:00:07]} 40. Qe4 {[%emt 0:00:26]} h5 {[%emt 0:02:16]} 41. Qe2 {[%emt 0:31:07]} Kg7 {[%emt 0:31:19]} 42. Qc2 {[%emt 0:00:36]} Qe8 {[%emt 0:03:29]} 43. Qe2 {[%emt 0:00:08]} Qd8 {[%emt 0:00:27]} 44. Qc2 {[%emt 0:00:18]} Ba1 {[%emt 0:01:59]} 45. Bf1 {[%emt 0:00:10]} Bd7 {[%emt 0:00:12]} 46. Qd1 {[%emt 0:04:10]} Qf6 {[%emt 0:00:00]} 47. Qd2 {[%emt 0:00:00]} (47. Kg2 {feels hotter.} Bg4 48. Qd2 Bc3 49. Qc2) 47... Bc3 {[%emt 0:00:00]} 48. Qd1 {[%emt 0:00:00]} Kf8 {[%emt 0:00:00]} 49. Be3 {[%emt 0:00:00]} Bg4 {[%emt 0:00:00]} 50. Qd3 {[%emt 0:00:00]} Bf5 {[%emt 0:00:00]} 51. Qd1 {[%emt 0:00:00]} Bg4 {[%emt 0:00:00] Weighted Error Value: White=0.05 (flawless) /Black=0.02 (flawless)} 1/2-1/2